bitfinex/quotes_ETHUSD_20240819
["timestamp","ask_amount","ask_price","bid_price","bid_amount"]
[1724109042239,5.81108005,2622.3,2621.9,6.92560152]
[1724109042531,5.81108005,2622.3,2622.0,0.12008255]
[1724109043503,1.99757005,2622.4,2622.1,6.16512]
[1724109043707,1.99757005,2622.4,2622.1,2.47145627]
[1724109044108,5.81088005,2622.4,2622.1,2.47145627]
[1724109044641,3.81345,2622.3,2622.1,2.3514]
[1724109045042,3.81345,2622.3,2622.2,0.12002999]
[1724109047322,5.81089005,2622.4,2622.2,0.12002999]
[1724109047519,1.99757005,2622.5,2622.2,4.18068299]
[1724109047719,5.81069005,2622.6,2622.2,0.247143]
[1724109047920,5.81069005,2622.6,2622.1,6.16513]
[1724109047921,5.81069005,2622.6,2622.3,0.1198536]
[1724109048110,5.81069005,2622.6,2622.1,6.16513]
[1724109048746,5.81069005,2622.6,2622.2,0.11979482]
[1724109049043,5.81069005,2622.6,2622.1,6.16513]
[1724109050152,5.81069005,2622.6,2622.2,0.11958464]
[1724109050444,5.81069005,2622.6,2622.1,6.16513]
[1724109050646,1.99757005,2622.5,2622.2,0.11958464]
[1724109051014,5.81069005,2622.6,2622.1,7.293929]
[1724109051222,5.81069005,2622.6,2622.2,0.11958464]
[1724109051423,1.99757005,2622.6,2622.2,3.81358]
[1724109051664,1.99757005,2622.6,2622.3,6.06916]
[1724109051833,1.99757005,2622.7,2622.4,6.06909]
[1724109052159,7.36,2622.8,2622.7,2.2558]
[1724109052456,1.99757005,2623.0,2622.7,2.2558]
[1724109052759,5.81002005,2623.0,2622.7,2.37522327]
[1724109052945,5.81002005,2623.0,2622.7,2.2558]
[1724109054775,3.81245,2623.0,2622.7,2.2558]
[1724109056018,5.81024005,2622.9,2622.4,3.81328]
[1724109056223,5.81024005,2622.9,2622.5,0.11930573]
[1724109057060,3.81273,2622.8,2622.5,0.11930573]
[1724109057421,3.81294,2622.7,2622.3,2.357]
[1724109057852,3.81294,2622.7,2622.4,0.11938202]
[1724109058521,3.30657005,2622.9,2622.4,0.11938202]
[1724109058522,3.81272,2622.8,2622.4,0.11938202]
[1724109059149,5.81012005,2623.0,2622.5,3.81308]
[1724109059348,5.81012005,2623.0,2622.6,6.1625]
[1724109059349,1.99757005,2623.0,2622.6,6.1625]
[1724109059552,3.81242,2623.0,2622.6,6.28178447]
[1724109060646,7.11698241,2623.1,2622.6,6.28172447]
[1724109060882,5.12129,2623.1,2622.6,6.28177447]
[1724109061378,5.12129,2623.1,2622.6,10.09467447]
[1724109061559,5.12129,2623.1,2622.6,6.28168447]
[1724109061933,5.12129,2623.1,2622.7,3.81283]
[1724109062149,5.12129,2623.1,2622.7,0.1192632]
[1724109062361,3.81229,2623.1,2622.7,0.1192632]
[1724109062564,3.81229,2623.1,2622.7,2.3309]
[1724109062935,3.81229,2623.1,2622.7,6.14373]
[1724109063138,3.81229,2623.1,2622.8,0.11923693]
[1724109063445,3.81229,2623.1,2622.9,0.11921067]
[1724109063664,3.81229,2623.1,2622.7,6.14373]
[1724109063984,3.81229,2623.1,2622.8,0.11923693]
[1724109064147,3.81243,2623.0,2622.8,0.11923693]
[1724109064363,3.81243,2623.0,2622.7,2.3309]
[1724109064569,3.81243,2623.0,2622.9,0.11921067]
[1724109064570,6.26183,2623.0,2622.9,0.11921067]
[1724109064894,3.81266,2622.9,2622.5,2.3546]
[1724109065031,5.12166,2622.9,2622.5,2.3546]
[1724109065983,5.12166,2622.9,2622.5,6.16771]
[1724109067072,3.81266,2622.9,2622.5,6.16771]
[1724109068273,3.81243,2623.0,2622.6,3.81297]
[1724109069238,3.81229,2623.1,2622.6,3.81297]
[1724109069881,7.62466,2623.1,2622.6,3.81297]
[1724109070114,3.81229,2623.1,2622.6,4.9108474]
[1724109070330,7.6247,2623.1,2622.6,4.9108474]
[1724109070484,7.6247,2623.1,2622.7,0.11890808]
[1724109070680,3.81245,2623.0,2622.7,0.11890808]
[1724109071627,3.8126,2622.9,2622.7,0.11890808]
[1724109072122,3.8126,2622.9,2622.8,0.11888181]
[1724109072334,3.8126,2622.9,2622.5,6.16771]
[1724109072487,3.8126,2622.9,2622.8,0.11888181]
[1724109072691,3.8126,2622.9,2622.5,2.3546]
[1724109072901,3.8126,2622.9,2622.8,0.11888181]
[1724109073100,3.8126,2622.9,2622.5,2.3546]
[1724109073393,3.8126,2622.9,2622.8,0.11888181]
[1724109073600,5.14413126,2622.9,2622.5,2.3546]
[1724109073822,3.8126,2622.9,2622.5,2.3546]
[1724109075413,3.8126,2622.9,2622.5,6.16774]
[1724109075816,3.8126,2622.9,2622.6,0.11893435]
[1724109076015,3.81286,2622.7,2622.6,0.11893435]
[1724109076217,11.24722,2622.7,2622.6,0.11893435]
[1724109076526,11.24722,2622.7,2621.9,2.4371]
[1724109076527,3.81316,2622.5,2622.0,8.93666]
[1724109076730,3.81316,2622.5,2622.0,5.1228]
[1724109077232,3.8133,2622.4,2622.0,5.1228]
[1724109077393,3.81316,2622.5,2622.0,8.93658]
[1724109077611,3.81316,2622.5,2622.0,5.12278]
[1724109077916,3.81316,2622.5,2622.1,3.81372]
[1724109078114,3.81316,2622.5,2622.0,6.260177]
[1724109078503,7.6264,2622.5,2622.0,6.260177]
[1724109078766,3.81316,2622.5,2622.0,6.260177]
[1724109079049,3.81316,2622.5,2622.1,3.81372]
[1724109079244,3.81316,2622.5,2622.1,5.0648197]
[1724109081509,3.81316,2622.5,2622.1,1.2510997]
[1724109084008,3.81316,2622.5,2622.1,5.0647697]
[1724109085659,5.81029366,2622.5,2622.2,0.09673227]
[1724109086156,5.81205749,2622.5,2622.2,0.09673227]
[1724109086357,9.62531749,2622.5,2622.2,0.09673227]
[1724109086526,1.99889749,2622.4,2622.0,3.81386]
[1724109086727,1.99889749,2622.4,2622.3,0.0936797]
[1724109086944,5.81191749,2622.6,2622.2,2.3211]
[1724109087128,1.99889749,2622.5,2622.3,0.09370471]
[1724109087320,1.99889749,2622.5,2622.2,2.3211]
[1724109087516,5.81213749,2622.5,2622.2,2.3211]
[1724109087718,5.81213749,2622.5,2622.3,0.09370471]
[1724109087917,5.81213749,2622.5,2622.2,2.3211]
[1724109088134,5.81213749,2622.5,2622.4,0.09367344]
[1724109088326,5.81213749,2622.5,2622.2,2.3211]
[1724109088532,5.81213749,2622.5,2622.4,0.09367344]
[1724109088729,5.81213749,2622.5,2622.2,2.3211]
[1724109089253,5.81213749,2622.5,2622.3,0.09369971]
[1724109089658,5.81213749,2622.5,2622.2,2.3211]
[1724109089828,5.81213749,2622.5,2622.4,0.09367344]
[1724109090040,5.81213749,2622.5,2622.3,0.09369971]
[1724109090261,5.81213749,2622.5,2622.4,0.09367344]
[1724109090624,5.81213749,2622.5,2622.2,2.3211]
[1724109090857,5.81315761,2622.5,2622.4,0.09367344]
[1724109091067,5.81315761,2622.5,2622.3,0.09063115]
[1724109091226,5.81315761,2622.5,2622.2,2.3211]
[1724109091559,5.81315761,2622.5,2622.3,0.09063115]
[1724109091760,1.99991761,2622.4,2622.3,0.09063115]
[1724109091934,1.99991761,2622.4,2622.2,2.3211]
[1724109092135,5.81315761,2622.5,2622.3,0.09063115]
[1724109092323,5.81315761,2622.5,2622.2,2.3211]
[1724109092524,1.99991761,2622.4,2622.2,2.3211]
[1724109095569,2.00016268,2622.4,2622.2,2.3211]
[1724109097063,2.00016268,2622.5,2622.2,2.3211]
[1724109097264,2.00016268,2622.5,2622.2,3.315963]
[1724109098961,5.81332268,2622.5,2622.2,3.315963]
[1724109099463,5.81332268,2622.5,2622.2,2.3211]
[1724109100271,5.81345697,2622.5,2622.2,2.3211]
[1724109100471,10.9407,2622.9,2622.3,5.12243]
[1724109100472,2.00029697,2622.6,2622.3,5.12243]
[1724109100689,2.00029697,2622.8,2622.7,3.81286]
[1724109100853,2.00029697,2622.8,2622.7,6.13926]
[1724109101029,2.00029697,2622.8,2622.7,6.22672684]
[1724109101567,2.00029697,2622.8,2622.7,10.03958684]
[1724109101775,2.00029697,2622.8,2622.7,6.22672684]
[1724109102953,2.00029697,2622.8,2622.7,2.41386684]
[1724109103134,10.02504636,2623.1,2622.7,0.08746684]
[1724109103135,3.81264,2622.9,2622.7,0.08746684]
[1724109103460,3.81264,2622.9,2622.5,3.81308]
[1724109103655,3.81264,2622.9,2622.8,0.08744058]
[1724109103874,3.81264,2622.9,2622.5,3.81308]
[1724109104038,2.00050921,2622.7,2622.4,6.30397]
[1724109104230,2.00050921,2622.7,2622.6,0.08749311]
[1724109104433,2.00050921,2622.7,2622.5,0.08739435]
[1724109104671,2.00050921,2622.7,2622.6,0.08736808]
[1724109104832,3.8128,2622.8,2622.6,0.08736808]
[1724109105033,2.00051036,2622.7,2622.4,3.81327]
[1724109105653,2.00051036,2622.7,2622.4,3.81321]
[1724109107041,2.00051036,2622.7,2622.4,7.62642]
[1724109107242,2.00051036,2622.7,2622.4,8.638132]
[1724109107585,2.00051036,2622.7,2622.4,4.824902]
[1724109107968,2.00051036,2622.8,2622.4,4.824902]
[1724109108475,2.00051036,2622.8,2622.5,3.81308]
[1724109108666,2.00051036,2622.7,2622.5,3.81308]
[1724109108866,3.81258,2622.9,2622.5,3.81308]
[1724109108867,2.00051036,2622.8,2622.5,5.0568482]
[1724109109645,2.00084605,2622.8,2622.5,5.0568482]
[1724109110952,3.81311,2622.6,2622.1,5.12266]
[1724109111156,2.00084605,2622.5,2622.1,5.12266]
[1724109111563,2.00084605,2622.4,2622.1,5.12266]
[1724109112241,2.00084605,2622.4,2622.1,3.81366]
[1724109112479,2.00084605,2622.2,2621.9,3.81395]
[1724109112773,6.21416526,2622.5,2621.9,3.81395]
[1724109112774,5.81429605,2622.3,2621.9,3.81395]
[1724109112978,2.00084605,2622.2,2622.0,0.08741569]
[1724109113377,3.81345,2622.3,2622.0,0.08741569]
[1724109113378,5.81429605,2622.3,2622.0,0.08741569]
[1724109114141,5.81385896,2622.3,2622.0,0.08741569]
[1724109115681,2.00040896,2622.2,2622.0,0.08741569]
[1724109116378,2.00040896,2622.2,2622.1,0.08738941]
[1724109116577,2.00040896,2622.2,2621.8,10.08135]
[1724109116780,2.00040896,2622.2,2622.1,0.08738941]
[1724109116938,2.00040896,2622.2,2621.8,2.4532]
[1724109117145,2.00040896,2622.1,2621.8,2.4532]
[1724109117677,5.81421896,2622.1,2621.8,2.4532]
[1724109118670,2.00040896,2622.1,2621.8,2.4532]
[1724109118949,5.81404076,2622.1,2621.7,0.1280552]
[1724109119259,2.00024076,2622.0,2621.7,0.1280552]
[1724109120477,2.00024076,2622.0,2621.7,3.9423652]
[1724109121507,5.81404076,2622.1,2621.7,3.9423652]
[1724109121796,5.81412076,2622.0,2621.7,0.1280552]
[1724109122689,5.8134858,2622.0,2621.7,0.1280552]
[1724109123772,3.81388,2622.0,2621.7,0.1280552]
[1724109124096,5.81303481,2622.0,2621.7,0.1280552]
[1724109124389,3.81388,2622.0,2621.7,0.1280552]
[1724109125791,1.99915481,2622.1,2621.7,0.1280552]
[1724109125956,3.81365,2622.2,2621.8,3.81417]
[1724109125957,5.81280481,2622.2,2621.8,3.81417]
[1724109126365,5.81280481,2622.2,2621.7,4.69357672]
[1724109126772,5.81280481,2622.2,2621.8,0.08376765]
[1724109126996,5.81280481,2622.2,2621.7,4.69357672]
[1724109127183,5.81280481,2622.2,2621.8,0.08376765]
[1724109127383,5.81280481,2622.2,2621.7,3.9423652]
[1724109127708,5.81280481,2622.2,2621.8,1.39276765]
[1724109132177,5.81127188,2622.2,2621.8,1.39276765]
[1724109135818,3.81374,2622.1,2621.8,1.39276765]
[1724109136196,3.81374,2622.1,2621.8,0.08376765]
[1724109136396,3.81374,2622.1,2621.7,3.9423652]
[1724109136705,3.81374,2622.1,2621.8,0.08411782]
[1724109136892,3.81402,2621.9,2621.8,0.08411782]
[1724109137090,3.81402,2621.9,2621.7,0.1280552]
[1724109137091,6.21872,2621.9,2621.7,0.1280552]
[1724109137296,6.21872,2621.9,2621.8,0.08411782]
[1724109137711,6.21872,2621.9,2621.7,0.1280552]
[1724109137879,10.03283,2621.9,2621.8,0.08411782]
[1724109138085,11.48702612,2621.9,2621.8,0.08411782]
[1724109138321,3.81417,2621.8,2621.7,0.1280552]
[1724109139783,7.62834,2621.8,2621.7,0.1280552]
[1724109140921,3.81417,2621.8,2621.7,0.1280552]
[1724109143144,7.62834,2621.8,2621.7,0.1280552]
[1724109143362,11.3394826,2621.8,2621.7,0.1280552]
[1724109143663,5.52935842,2621.8,2621.7,0.1280552]
[1724109145419,9.52379418,2621.9,2621.7,0.1280552]
[1724109145420,3.81409,2621.9,2621.7,0.1280552]
[1724109145773,3.81409,2621.9,2621.8,0.08235571]
[1724109146109,3.81409,2621.9,2621.7,0.1280552]
[1724109146310,3.81409,2621.9,2621.8,0.08235571]
[1724109146750,3.81409,2621.9,2621.7,0.1280552]
[1724109146970,3.81409,2621.9,2621.8,0.08235571]
[1724109147608,3.81409,2621.9,2621.7,0.1280552]
[1724109147609,7.62822,2621.9,2621.7,0.1280552]
[1724109147816,3.81409,2621.9,2621.8,0.08235571]
[1724109148159,3.81409,2621.9,2621.7,0.1280552]
[1724109148468,3.81409,2621.9,2621.8,0.08235571]
[1724109148944,3.81409,2621.9,2621.7,0.1280552]
[1724109149150,3.81409,2621.9,2621.8,0.08240575]
[1724109149537,3.81409,2621.9,2621.7,0.1280552]
[1724109149749,3.81409,2621.9,2621.8,0.08240575]
[1724109150145,3.81409,2621.9,2621.7,0.1280552]
[1724109150336,3.81409,2621.9,2621.8,0.08240575]
[1724109150738,3.81409,2621.9,2621.7,0.1280552]
[1724109150943,3.81409,2621.9,2621.8,0.08240575]
[1724109151612,3.81409,2621.9,2621.7,0.1280552]
[1724109151813,3.81409,2621.9,2621.8,0.08240575]
[1724109152019,3.81409,2621.9,2621.7,0.1280552]
[1724109152251,5.80972004,2621.9,2621.8,0.08240575]
[1724109152449,5.80972004,2621.9,2621.7,0.1280552]
[1724109152628,5.80972004,2621.9,2621.8,0.08240575]
[1724109152830,3.81409,2621.9,2621.7,0.1280552]
[1724109153057,3.81409,2621.9,2621.8,0.08240575]
[1724109153358,3.81409,2621.9,2621.7,0.1280552]
[1724109153530,5.80972004,2621.9,2621.8,0.08234568]
[1724109153910,5.80972004,2621.9,2621.7,0.1280552]
[1724109154116,5.80972004,2621.9,2621.8,0.08234568]
[1724109154537,5.80972004,2621.9,2621.7,0.1280552]
[1724109154856,5.80972004,2621.9,2621.8,0.08234568]
[1724109155058,5.80972004,2621.9,2621.7,0.1280552]
[1724109155213,5.80972004,2621.9,2621.8,0.08234568]
[1724109155418,3.81409,2621.9,2621.7,0.1280552]
[1724109155617,3.81409,2621.9,2621.8,0.08234568]
[1724109155618,5.81167289,2621.9,2621.8,0.08234568]
[1724109155930,5.81167289,2621.9,2621.7,0.1280552]
[1724109156113,5.81167289,2621.9,2621.8,0.08234568]
[1724109156316,3.81409,2621.9,2621.8,0.08234568]
[1724109156520,3.81409,2621.9,2621.7,0.1280552]
[1724109156719,1.99833328,2621.8,2621.7,0.1280552]
[1724109159221,1.99833328,2621.8,2621.7,2.5962552]
[1724109159519,1.99833328,2621.8,2621.7,3.74968472]
[1724109159720,1.99833328,2621.9,2621.7,3.74968472]
[1724109159917,1.99833328,2621.9,2621.7,7.56399472]
[1724109160455,1.99912051,2621.9,2621.7,7.56393472]
[1724109160633,1.99912051,2621.9,2621.8,0.75639347]
[1724109161461,6.21275461,2622.1,2621.8,0.83876418]
[1724109161619,1.99945044,2621.9,2621.8,0.83876418]
[1724109163219,1.99945044,2622.0,2621.8,0.83876418]
[1724109165181,1.99990046,2622.0,2621.9,7.54912]
[1724109165371,13.97313064,2622.5,2622.1,3.81373]
[1724109165372,1.99990046,2622.2,2622.1,3.81373]
[1724109165532,1.99990046,2622.3,2622.1,5.12273]
[1724109165884,1.99990046,2622.3,2622.1,6.35238583]
[1724109166650,1.99990046,2622.3,2622.1,1.22965583]
[1724109166854,3.81344,2622.3,2622.2,0.0820304]
[1724109167197,3.81344,2622.3,2622.0,2.4261]
[1724109167398,2.00000064,2622.2,2622.0,2.4261]
[1724109167746,2.00000064,2622.2,2622.1,0.08205668]
[1724109169603,3.81345,2622.3,2622.1,0.08205668]
[1724109169750,1.99949331,2622.2,2622.1,0.08205668]
[1724109171502,10.02588197,2622.5,2622.1,0.08205668]
[1724109171503,1.99949331,2622.3,2622.1,0.08205668]
[1724109172396,1.99949331,2622.2,2622.1,0.08205668]
[1724109172553,1.99949331,2622.3,2622.1,0.08205668]
[1724109173797,5.81308331,2622.2,2622.1,0.08205668]
[1724109174173,5.81308331,2622.2,2621.8,7.48076]
[1724109174395,5.81308331,2622.2,2622.1,0.08197663]
[1724109174396,3.81359,2622.2,2622.1,0.08197663]
[1724109174595,3.81359,2622.2,2621.8,7.48076]
[1724109174759,3.81359,2622.2,2622.1,0.08197663]
[1724109174965,3.81359,2622.2,2621.8,7.48076]
[1724109175165,3.81359,2622.2,2622.1,0.08188656]
[1724109175385,3.81359,2622.2,2621.8,7.48076]
[1724109175719,3.81359,2622.2,2621.8,11.29487]
[1724109175919,3.81359,2622.2,2621.9,0.08193912]
[1724109179100,2.00042232,2622.3,2621.9,3.89595912]
[1724109179907,5.81390232,2622.3,2621.9,3.89595912]
[1724109184043,5.81288583,2622.3,2621.9,3.89595912]
[1724109185251,1.99940583,2622.3,2622.1,2.3993]
[1724109185466,5.81272583,2622.4,2622.2,0.08183527]
[1724109185635,1.99940583,2622.3,2622.2,0.08183527]
[1724109185833,1.99940583,2622.3,2621.8,1.309]
[1724109185834,3.8137,2622.2,2621.8,5.12314]
[1724109186036,3.8137,2622.2,2621.9,0.0818591]
[1724109186253,3.81373,2622.1,2621.9,0.0818591]
[1724109187144,5.8129005,2622.2,2621.9,0.0818591]
[1724109187766,3.81375,2622.1,2621.9,0.0818591]
[1724109187923,3.81388,2622.0,2621.9,0.0818591]
[1724109188127,3.81417,2621.8,2621.7,0.1280552]
[1724109188569,5.81317088,2621.9,2621.7,0.1280552]
[1724109188931,9.62727088,2621.9,2621.7,0.1280552]
[1724109189128,5.81317088,2621.9,2621.7,0.1280552]
[1724109189430,1.99914088,2621.9,2621.7,0.1280552]
[1724109190473,1.99914088,2621.9,2621.8,0.07937553]
[1724109190658,1.99914088,2621.9,2621.7,0.1280552]
[1724109190996,1.99914088,2621.9,2621.8,0.07937553]
[1724109191392,1.99914088,2621.9,2621.7,0.1280552]
[1724109191606,1.99914088,2621.9,2621.8,0.07937553]
[1724109191607,5.81323088,2621.9,2621.8,0.07937553]
[1724109191985,1.99914088,2621.9,2621.7,0.1280552]
[1724109192173,1.99914088,2621.9,2621.8,0.07937553]
[1724109192587,1.99914088,2621.9,2621.7,0.1280552]
[1724109192783,1.99914088,2621.9,2621.8,0.07937553]
[1724109193160,1.99914088,2621.9,2621.7,0.1280552]
[1724109193361,5.81304088,2622.0,2621.8,0.07937553]
[1724109193901,5.81304088,2622.0,2621.9,0.07934925]
[1724109194109,1.99914088,2622.0,2621.9,0.07934925]
[1724109194297,1.99914088,2622.0,2621.8,2.3769]
[1724109194482,5.81287088,2622.1,2621.9,0.07934925]
[1724109194995,1.99914088,2622.0,2621.9,0.07934925]
[1724109198016,1.99914088,2622.1,2621.9,0.07934925]
[1724109198327,1.99914088,2622.0,2621.9,0.07934925]
[1724109199130,1.99914088,2622.0,2621.7,3.9423552]
[1724109199329,1.99914088,2622.0,2621.9,0.07934925]
[1724109199524,1.99914088,2622.0,2621.8,0.07937553]
[1724109199716,1.99914088,2622.0,2621.9,0.07934925]
[1724109200116,1.99914088,2622.0,2621.8,3.81416]
[1724109200443,1.99914088,2622.0,2621.9,0.07934925]
[1724109201225,1.9993968,2622.0,2621.9,0.07934925]
[1724109205531,1.9993968,2622.0,2621.9,2.38124925]
[1724109205733,1.9993968,2622.0,2621.9,8.64892269]
[1724109205939,2.00018517,2622.2,2621.9,8.64892269]
[1724109206149,2.00018517,2622.2,2622.1,5.12273]
[1724109206459,6.21345221,2622.5,2622.1,5.12273]
[1724109206460,2.00018517,2622.3,2622.2,2.3019]
[1724109206630,2.00018517,2622.3,2622.2,2.38118041]
[1724109207362,2.00018517,2622.4,2622.2,2.38118041]
[1724109207552,2.00018517,2622.4,2622.2,3.51293145]
[1724109209947,2.00018517,2622.4,2622.2,7.32648145]
[1724109210371,2.00018517,2622.4,2622.2,3.51293145]
[1724109210552,1.99989423,2622.4,2622.2,3.51293145]
[1724109211323,1.99989423,2622.4,2622.2,7.32651145]
[1724109211523,1.99989423,2622.4,2622.3,0.86355115]
[1724109211958,1.99989423,2622.4,2622.3,0.94280529]
[1724109212326,1.99989423,2622.4,2622.3,9.87868529]
[1724109212531,1.99989423,2622.7,2622.4,6.29641]
[1724109212767,1.99989423,2622.8,2622.6,3.81291]
[1724109212969,11.17254,2623.0,2622.6,3.81291]
[1724109212970,1.99989423,2622.9,2622.6,3.81291]
[1724109213174,1.99989423,2622.9,2622.7,0.07871972]
[1724109215134,1.99909647,2622.9,2622.7,0.07871972]
[1724109216545,5.81163647,2623.0,2622.7,0.07871972]
[1724109216948,5.81163647,2623.0,2622.6,7.62585]
[1724109216949,5.81163647,2623.0,2622.6,3.81291]
[1724109217153,1.99909647,2623.1,2622.6,4.95474]
[1724109217473,1.99909647,2623.1,2622.8,2.3701]
[1724109217647,1.99909647,2623.1,2622.9,0.07866719]
[1724109218055,5.81138647,2623.1,2622.9,0.07866719]
[1724109218252,5.81138647,2623.1,2622.7,3.81275]
[1724109218253,1.99909647,2623.0,2622.7,3.81275]
[1724109218464,5.81138647,2623.1,2622.7,3.81275]
[1724109218867,1.99909647,2623.1,2622.8,0.07869345]
[1724109219068,1.99909647,2623.1,2622.7,3.81275]
[1724109219379,1.99909647,2623.1,2622.8,0.07869345]
[1724109219882,1.99651989,2623.1,2622.9,0.07866719]
[1724109220055,1.99651989,2623.1,2622.7,4.955357]
[1724109220418,1.99651989,2623.1,2622.8,0.07869345]
[1724109220687,1.99651989,2623.1,2622.7,4.955357]
[1724109220847,1.99651989,2623.1,2622.8,0.82335915]
[1724109221980,7.62439,2623.2,2622.9,2.4128]
[1724109221981,1.99651989,2623.2,2622.9,2.4128]
[1724109222275,1.99651989,2623.2,2623.0,0.07864093]
[1724109222481,5.80850989,2623.3,2623.0,0.07864093]
[1724109224486,1.9956451,2623.2,2623.0,0.07864093]
[1724109224873,5.8076351,2623.3,2623.0,0.07864093]
[1724109227257,5.8076351,2623.3,2622.9,2.4128]
[1724109228163,5.8076351,2623.3,2622.9,6.22535]
[1724109228482,3.81199,2623.3,2622.9,7.36006]
[1724109228900,7.62407,2623.3,2622.9,7.36006]
[1724109229094,3.81199,2623.3,2622.9,7.36006]
[1724109229299,7.62409,2623.3,2622.9,3.54751]
[1724109229473,7.62409,2623.3,2622.9,2.4128]
[1724109229875,3.81199,2623.3,2622.9,6.22533]
[1724109230415,3.81199,2623.3,2622.9,2.4128]
[1724109231792,3.81199,2623.3,2622.9,6.22535]
[1724109232486,3.81199,2623.3,2622.9,2.4128]
[1724109232487,7.62408,2623.3,2622.9,2.4128]
[1724109232791,3.81199,2623.3,2622.9,2.4128]
[1724109234386,7.62406,2623.3,2622.9,2.4128]
[1724109234587,3.81199,2623.3,2622.9,2.4128]
[1724109234817,7.62406,2623.3,2622.9,2.4128]
[1724109235533,3.81213,2623.2,2622.9,2.4128]
[1724109235978,3.81213,2623.2,2623.0,0.07839639]
[1724109236174,3.81199,2623.3,2623.0,0.07839639]
[1724109236580,9.53410064,2623.5,2622.9,7.53426]
[1724109236581,3.81187,2623.4,2622.9,7.53426]
[1724109236885,3.81187,2623.4,2622.9,8.287686]
[1724109237087,3.81187,2623.4,2623.0,3.8124]
[1724109237336,3.81187,2623.4,2623.1,0.07837013]
[1724109238122,3.81187,2623.4,2622.9,6.22534]
[1724109238285,3.81187,2623.4,2623.0,0.07839639]
[1724109238709,3.81187,2623.4,2622.9,6.22534]
[1724109240024,3.812,2623.3,2622.9,6.22534]
[1724109243099,3.812,2623.3,2622.9,6.22531]
[1724109244115,3.812,2623.3,2622.9,6.22529]
[1724109244499,1.99484955,2623.4,2623.1,2.4831]
[1724109244706,1.99484955,2623.4,2623.2,0.07830398]
[1724109245507,5.80665955,2623.5,2623.2,0.07830398]
[1724109245697,5.80665955,2623.5,2623.1,6.29532]
[1724109246503,9.61844955,2623.5,2623.1,6.29532]
[1724109246709,5.80663955,2623.5,2623.1,6.29532]
[1724109247621,9.61843955,2623.5,2623.1,6.29532]
[1724109247823,5.80663955,2623.5,2623.1,6.29532]
[1724109248304,9.61844955,2623.5,2623.1,6.29532]
[1724109248506,1.99484955,2623.4,2623.1,6.29532]
[1724109248701,1.99484955,2623.4,2623.1,2.4831]
[1724109250353,1.99484955,2623.4,2623.1,3.624793]
[1724109251642,1.99484955,2623.3,2623.1,3.624793]
[1724109253809,1.99484955,2623.3,2623.1,7.437053]
[1724109255962,1.99893504,2623.3,2623.1,7.437053]
[1724109256523,1.99893504,2623.2,2623.1,7.437053]
[1724109256718,1.99893504,2623.3,2623.1,7.5153533]
[1724109256923,1.99893504,2623.3,2623.1,7.437053]
[1724109257345,1.99893504,2623.2,2623.1,3.624793]
[1724109257655,1.99893504,2623.2,2623.1,2.5614003]
[1724109259136,1.99893504,2623.2,2623.1,0.0783003]
[1724109259334,3.81199,2623.3,2622.7,2.3002]
[1724109259335,3.81237,2623.1,2622.7,2.3002]
[1724109259677,3.81271,2622.9,2622.5,2.3002]
[1724109259989,2.00046543,2622.6,2622.5,2.3002]
[1724109260323,3.81272,2622.8,2622.5,2.3002]
[1724109260520,2.00041063,2622.7,2622.5,2.3002]
[1724109261230,3.81272,2622.8,2622.5,2.3002]
[1724109261231,2.00041063,2622.6,2622.5,2.3002]
[1724109261966,2.00041063,2622.7,2622.5,2.3002]
[1724109262839,2.00041063,2622.7,2622.5,6.11334]
[1724109263038,2.00041063,2622.7,2622.5,6.11329]
[1724109263242,2.00041063,2622.8,2622.6,2.2785]
[1724109263649,2.00041063,2622.8,2622.7,3.81286]
[1724109264067,2.00041063,2622.9,2622.7,3.81286]
[1724109264440,2.00004537,2622.9,2622.7,3.81286]
[1724109265035,2.00004473,2622.9,2622.7,3.81286]
[1724109265639,2.00004473,2622.9,2622.8,0.07851878]
[1724109266385,2.00004473,2622.9,2622.7,3.81286]
[1724109266564,2.00002289,2622.9,2622.7,3.81286]
[1724109267188,6.21234367,2623.1,2622.7,3.81286]
[1724109267189,2.00002289,2622.8,2622.7,3.81286]
[1724109269156,2.00002289,2622.9,2622.7,3.81286]
[1724109269559,2.00002289,2622.8,2622.7,3.81286]
[1724109269797,1.99996753,2622.9,2622.7,3.81286]
[1724109271102,1.99996753,2622.9,2622.6,6.09148]
[1724109272306,1.99996753,2622.8,2622.6,6.09148]
[1724109272508,1.99996753,2622.9,2622.6,6.09148]
[1724109273318,1.99996753,2622.9,2622.7,3.81285]
[1724109275170,1.99996753,2622.9,2622.7,4.934199]
[1724109275941,1.99996753,2622.9,2622.8,3.81271]
[1724109276108,1.99996753,2622.9,2622.8,6.23421]
[1724109278277,1.99996753,2623.0,2622.8,6.23421]
[1724109278478,1.99996753,2622.9,2622.8,6.23421]
[1724109278879,1.99996753,2622.9,2622.7,3.81286]
[1724109279327,1.99952254,2622.9,2622.7,3.81286]
[1724109280621,1.99952254,2622.9,2622.8,0.07844391]
[1724109280998,1.99952254,2622.9,2622.5,3.8131]
[1724109281201,1.99952254,2622.8,2622.4,3.8001]
[1724109281408,5.81230254,2622.8,2622.4,3.8001]
[1724109282004,3.81278,2622.8,2622.4,3.8001]
[1724109282204,3.81286,2622.7,2622.4,3.8001]
[1724109282540,3.81286,2622.7,2622.3,3.81338]
[1724109284790,3.81286,2622.7,2622.4,1.309]
[1724109286256,8.07205254,2622.8,2622.4,1.309]
[1724109287219,1.99952254,2622.7,2622.4,1.309]
[1724109287836,1.99952254,2622.7,2622.5,0.07855267]
[1724109288170,1.99952254,2622.7,2622.3,4.825174]
[1724109288339,1.99952254,2622.7,2622.4,0.07858393]
[1724109288705,1.99914442,2622.7,2622.4,3.89187393]
[1724109290035,5.81187442,2622.8,2622.4,3.89187393]
[1724109290535,1.99914442,2622.7,2622.4,3.89187393]
[1724109291118,1.99914442,2622.7,2622.4,0.07858393]
[1724109291333,1.99914442,2622.7,2621.9,6.18746]
[1724109291334,3.81315,2622.5,2621.9,6.18746]
[1724109291493,5.81183474,2622.4,2621.9,6.18746]
[1724109291819,1.99841474,2622.3,2622.0,0.07870401]
[1724109292411,5.81183474,2622.4,2622.0,0.07870401]
[1724109292618,1.99841474,2622.3,2622.0,0.07870401]
[1724109292920,5.81183474,2622.4,2622.0,0.07870401]
[1724109293344,1.99785435,2622.3,2622.0,0.07870401]
[1724109293553,5.81127435,2622.4,2622.0,0.07870401]
[1724109294618,3.81344,2622.3,2622.0,0.07870401]
[1724109296754,5.81115435,2622.4,2622.0,0.07870401]
[1724109296953,3.8133,2622.4,2622.0,6.24485401]